fUSD/lending_fUSD_20240327
["ID","MTS","AMOUNT","RATE_DAILY","PERIOD"]
[320721028,1711534233470,-1309.83,0.00022497,2]
[320721029,1711534233480,-1580.69249,0.000226,2]
[320721030,1711534233490,-158.91606996,0.00022683,2]
[320721031,1711534233499,-184.15,0.00022697,10]
[320721032,1711534233509,-166.8,0.00022874,2]
[320721033,1711534233519,-1580.69249,0.0002291,2]
[320721034,1711534233528,-170.18,0.00023032,2]
[320721035,1711534233538,-1580.69249,0.0002323,2]
[320721036,1711534233548,-274.0,0.000234,2]
[320721037,1711534233557,-1361.0,0.000234,2]
[320721038,1711534233567,-176.96843755,0.00023406,2]
[320721039,1711534233576,-184.15,0.00023439,10]
[320721040,1711534233585,-158.91606996,0.00023442,2]
[320721041,1711534233594,-229.18,0.00023442,2]
[320721042,1711534233606,-164202.78697979,0.000235,2]
[320721043,1711534233616,-830.76,0.000235,2]
[320721044,1711534233625,-1921.96437535,0.0002354,2]
[320721045,1711534233635,-1580.69249,0.0002354,2]
[320721046,1711534233647,-8697.68563476,0.00023573,2]
[320721047,1711534233657,-174.31,0.00023749,2]
[320721048,1711534233667,-223.94252704,0.00024,2]
[320721049,1711534233676,-940.16086359,0.00024,2]
[320721050,1711534233685,-184.15,0.0002418,10]
[320721051,1711534233695,-158.91606996,0.000242,2]
[320721052,1711534233704,-836.54340258,0.00024257,2]
[320721053,1711534233714,-166.8,0.00024492,2]
[320721054,1711534233723,-1000.0,0.00024728,2]
[320721055,1711534233732,-184.15,0.00024922,10]
[320721056,1711534233742,-158.91606996,0.00024959,2]
[320721057,1711534233753,-1802.68724567,0.00024998,2]
[320721058,1711534233763,-1233.51453626,0.00025,2]
[320721059,1711534233773,-3595.55448134,0.00025,4]
[320721060,1711534233781,-1363.35991343,0.00025,2]
[320721061,1711534233791,-2595.96864508,0.00025,2]
[320721062,1711534233801,-168.16,0.00025004,2]
[320721063,1711534233810,-6672.63,0.00025098,2]
[320721064,1711534233820,-170.18,0.00025591,2]
[320721065,1711534234041,-158.91606996,0.00025718,2]
[320721066,1711534234052,-830.76,0.00025764,2]
[320721067,1711534234063,-2704.85740788,0.00025818,2]
[320721068,1711534234072,-24770.05795702,0.00025818,2]
[320721069,1711534234081,-4219.11820855,0.00026,2]
[320721070,1711534234090,-166.8,0.0002611,2]
[320721071,1711534234100,-8697.68563469,0.00026296,2]
[320721072,1711534234109,-152.38573111,0.00026335,2]
[320721073,1711534234119,-1246.14385327,0.000264,2]
[320721074,1711534234439,-24357.26797087,0.000264,2]
[320721075,1711534234449,-1685.19,0.00027397,2]
[320721076,1711534234459,-836.54340258,0.00027435,2]
[320721077,1711534234469,-605.58124158,0.000275,2]
[320721078,1711534234478,-166.8,0.00027728,2]
[320721079,1711534234487,-1000.0,0.00027818,2]
[320721080,1711534234498,-6672.63,0.00027838,2]
[320721081,1711534234508,-400.0,0.00027868,120]
[320721082,1711534234517,-830.76,0.00028028,2]
[320721083,1711534234526,-12371.69132285,0.00028857,2]
[320721084,1711534234536,-165.1719352,0.000289,2]
[320721085,1711534234545,-559.30829187,0.00029,2]
[320721086,1711534234555,-8697.68563469,0.0002902,2]
[320721087,1711534234566,-1018.23151753,0.00029211,2]
[320721088,1711534234578,-1086.28848247,0.00029211,2]
[320721089,1711534234588,-2704.85740788,0.00029777,2]
[320721090,1711534234597,-24263.42915913,0.00029777,2]
[320721091,1711534234609,-506.62879789,0.00029777,2]
[320721092,1711534234618,-4670.50396817,0.0003,2]
[320721093,1711534234627,-511.83599996,0.0003,4]
[320721094,1711534234636,-4990.995237,0.0003,4]
[320721095,1711534234647,-3120.80192136,0.0003,4]
[320721096,1711534234657,-830.76,0.00030292,2]
[320721097,1711534234667,-3815.06,0.00030326,2]
[320721098,1711534234676,-836.54340258,0.00030613,2]
[320721099,1711534234686,-700.0,0.000309,11]
[320721100,1711534234695,-1000.0,0.00030909,2]
[320721101,1711534234705,-400.0,0.00030965,120]
[320721102,1711534234714,-200.0,0.00031084,120]
[320721103,1711534234723,-76624.03402353,0.0003111,2]
[320721104,1711534234733,-152.38573111,0.00031518,2]
[320721105,1711534234742,-8697.68563469,0.00031743,3]
[320721106,1711534234753,-162.74,0.00032548,15]
[320721107,1711534234764,-830.76,0.00032556,2]
[320721108,1711534234774,-200.0,0.0003325,10]
[320721109,1711534234783,-605.02,0.00033537,2]
[320721110,1711534234794,-605.02,0.00033546,2]
[320721111,1711534234804,-605.02,0.00033555,2]
[320721112,1711534234815,-605.02,0.00033564,2]
[320721113,1711534234824,-605.02,0.00033572,2]
[320721114,1711534234837,-605.02,0.00033581,2]
[320721115,1711534234847,-605.02,0.0003359,2]
[320721116,1711534234856,-605.02,0.00033599,2]
[320721117,1711534234865,-605.02,0.00033608,2]
[320721118,1711534234874,-605.02,0.00033617,2]
[320721119,1711534234883,-605.02,0.00033625,2]
[320721120,1711534234893,-605.02,0.00033634,2]
[320721121,1711534234902,-605.02,0.00033643,2]
[320721122,1711534234911,-605.02,0.00033652,2]
[320721123,1711534234920,-605.02,0.00033661,2]
[320721124,1711534234930,-605.02,0.0003367,2]
[320721125,1711534234939,-605.02,0.00033678,2]
[320721126,1711534234947,-605.02,0.00033687,2]
[320721127,1711534234957,-605.02,0.00033696,2]
[320721128,1711534234965,-605.02,0.00033705,2]
[320721129,1711534234974,-1309.83,0.0003373,2]
[320721130,1711534234983,-2704.85740788,0.00033736,2]
[320721131,1711534234992,-24770.05795702,0.00033736,2]
[320721132,1711534235005,-836.54340258,0.00033791,2]
[320721133,1711534235014,-712.61418707,0.00033864,4]
[320721134,1711534235024,-1000.0,0.00034,2]
[320721135,1711534235033,-400.0,0.00034061,120]
[320721136,1711534235042,-8697.68563469,0.00034466,6]
[320721137,1711534235051,-3720.79981531,0.000347,2]
[320721138,1711534235061,-1100.0,0.000348,12]
[320721139,1711534235070,-830.76,0.0003482,2]
[320721140,1711534235080,-18027.84233847,0.000349,2]
[320721141,1711534235089,-1500.0,0.000349,12]
[320721142,1711534235099,-292.18382506,0.000349,24]
[320721143,1711534235108,-1511.32725023,0.000349,2]
[320721144,1711534235117,-2204.48412746,0.000349,2]
[320721145,1711534235126,-196.0,0.0003497,15]
[320721146,1711534235136,-196.0,0.0003498,15]
[320721147,1711534235145,-48645.54082724,0.0003499,2]
[320721148,1711534235154,-196.0,0.0003499,15]
[320721149,1711534235163,-207.97893084,0.0003499,2]
[320721150,1711534235172,-207.97893084,0.0003499,2]
[320721151,1711534235181,-519.30316936,0.00034999,120]
[320721152,1711534235190,-24802.88340755,0.00035,4]
[320721153,1711534235220,-170.18,0.0002815,2]
[320721154,1711534235229,-5992.49763413,0.00035,4]
[320721157,1711534238290,-170.18,0.00030709,2]
[320721158,1711534238311,-183.64012445,0.000349,2]
[320721159,1711534238334,-8457.17478492,0.000349,2]
[320721160,1711534238355,-12293.46015073,0.00035,4]
[320721161,1711534238417,-2194242.1438103,0.00035,4]
[320721162,1711534238438,-183.71,0.00035,2]
[320721163,1711534238459,-174.38,0.00035,2]
[320721164,1711534238476,-156.02,0.00035,2]
[320721165,1711534238486,-152.38573111,0.00036701,2]
[320721166,1711534238500,-836.54340258,0.0003697,2]
[320721167,1711534238510,-1010.39616778,0.00036999,2]
[320721168,1711534238520,-515.59425167,0.00036999,2]
[320721169,1711534238531,-830.76,0.00037084,2]
[320721170,1711534238541,-1000.0,0.00037091,2]
[320721171,1711534238550,-400.0,0.00037158,120]
[320721172,1711534238561,-8697.68563469,0.0003719,10]
[320721173,1711534238570,-2505.073525,0.000373,29]
[320721174,1711534238581,-150.0,0.00037346,2]
[320721175,1711534238591,-150.0,0.00037458,2]
[320721176,1711534238600,-800.0,0.00037589,2]
[320721177,1711534238610,-5233.67240268,0.00037627,4]
[320721178,1711534238620,-155.0,0.00037627,4]
[320721179,1711534238630,-680.06373145,0.00037627,4]
[320721180,1711534238640,-3064.98806203,0.00037627,4]
[320721181,1711534238652,-854.63911886,0.00037627,5]
[320721182,1711534238661,-1756.57153444,0.00037627,4]
[320721183,1711534238671,-3845.29565069,0.00037627,2]
[320721184,1711534238681,-155.0,0.00037627,2]
[320721185,1711534238692,-590.90258329,0.00037627,2]
[320721186,1711534238702,-1248.6644958,0.00037627,120]
[320721187,1711534238712,-599.01425648,0.00037627,4]
[320721188,1711534238723,-3044.32575757,0.00037627,15]
[320721190,1711534238733,-500.0,0.00037628,2]
[320721191,1711534238743,-2957.62674015,0.00037629,4]
[320721192,1711534238753,-168.49219842,0.00037629,2]
[320721193,1711534238763,-675.43651637,0.00037629,4]
[320721194,1711534238774,-155.0,0.00037629,2]
[320721195,1711534238783,-440.8318424,0.00037629,17]
[320721196,1711534238797,-2704.85740788,0.00037694,2]
[320721197,1711534238807,-24770.05795702,0.00037694,2]
[320721198,1711534238817,-1500.0,0.000378,29]
[320721199,1711534238827,-1500.0,0.000383,29]
[320721200,1711534238838,-174.38,0.000383,7]
[320721201,1711534238848,-156.02,0.000383,2]
[320721202,1711534238859,-7754.62,0.00038356,60]
[320721203,1711534238868,-202.52636288,0.0003836,10]
[320721204,1711534238878,-176.96843755,0.00038468,11]
[320721205,1711534238890,-183.71,0.000385,7]
[320721206,1711534238903,-155.0,0.000387,4]
[320721207,1711534238914,-1500.0,0.000388,29]
[320721208,1711534238923,-400.28635015,0.0003888,2]
[320721209,1711534238933,-550.0,0.00039,3]
[320721210,1711534238942,-1500.0,0.000393,29]
[320721211,1711534238952,-830.76,0.00039348,2]
[320721212,1711534238961,-2749.00483996,0.0003936,2]
[320721213,1711534238970,-793.98654211,0.0003936,2]
[320721214,1711534238980,-520.76776599,0.0003936,2]
[320721215,1711534238990,-152.72751103,0.0003936,28]
[320721216,1711534238999,-159.22,0.0003944,30]
[320721217,1711534239008,-238.84,0.0003944,30]
[320721218,1711534239018,-292.18382502,0.00039558,31]
[320721219,1711534239027,-8697.68563469,0.00039913,13]
[320721220,1711534239036,-3739.00676453,0.0004,4]
[320721221,1711534239045,-3357.71176501,0.0004,4]
[320721222,1711534239054,-4753.15701994,0.0004,4]
[320721223,1711534239065,-95370.3974185,0.0004,2]
[320721224,1711534239074,-1877.47970494,0.0004,30]
[320721225,1711534239084,-7937.94912886,0.0004,4]
[320721226,1711534239093,-836.54340258,0.00040148,2]
[320721227,1711534239103,-600.0,0.00041,3]
[320721228,1711534239113,-7841.77272824,0.00041,4]
[320721229,1711534239122,-174.38,0.00041,7]
[320721230,1711534239133,-156.02,0.00041,7]
[320721231,1711534239143,-1500.0,0.00041096,120]
[320721232,1711534239154,-3815.06,0.00041559,2]
[320721233,1711534239163,-830.76,0.00041611,2]
[320721234,1711534239173,-1000.0,0.00041644,120]
[320721235,1711534239182,-2704.85740788,0.00041653,2]
[320721236,1711534239191,-24770.05795702,0.00041653,2]
[320721237,1711534239201,-183.71,0.000417,7]
[320721238,1711534239210,-152.38573111,0.00041885,13]
[320721239,1711534239220,-8697.68563469,0.00042637,17]
[320721240,1711534239230,-404.0,0.00042749,7]
[320721241,1711534239239,-658.12913385,0.00043165,7]
[320721242,1711534239249,-836.54340258,0.00043326,2]
[320721243,1711534239259,-830.76,0.00043875,2]
[320721244,1711534239269,-292.18382502,0.00044215,38]
[320721245,1711534239278,-1511.32725023,0.00044215,2]
[320721246,1711534239287,-2204.48412745,0.00044215,2]
[320721247,1711534239297,-269.83900737,0.00044444,7]
[320721248,1711534239306,-156.03890616,0.00044491,4]
[320721249,1711534239316,-174.38,0.000445,7]
[320721250,1711534239325,-156.02,0.000446,7]
[320721251,1711534239335,-1309.83,0.00044963,120]
[320721252,1711534239344,-22038.94073476,0.00045,4]
[320721253,1711534239353,-339.22517766,0.00045,10]
[320721254,1711534239363,-500.0,0.00045,14]
[320721255,1711534239373,-8697.68563469,0.0004536,20]
[320721256,1711534239383,-2704.85740788,0.00045612,2]
[320721257,1711534239392,-24770.05795702,0.00045612,2]
[320721258,1711534239404,-830.76,0.00046139,2]
[320721259,1711534239413,-162.74,0.00046247,15]
[320721260,1711534239423,-183.71,0.000463,7]
[320721261,1711534239433,-1008.10630562,0.00046351,30]
[320721262,1711534239443,-836.54340258,0.00046505,2]
[320721263,1711534239453,-1026.94712488,0.00047,2]
[320721264,1711534239463,-152.38573111,0.00047068,33]
[320721265,1711534239472,-5318.70302221,0.00047171,4]
[320721266,1711534239481,-658.12913385,0.00047188,7]
[320721267,1711534239491,-151.35,0.00047325,2]
[320721268,1711534239500,-1033.84,0.00047325,2]
[320721269,1711534239509,-152.76,0.00047325,2]
[320721270,1711534239518,-318.31,0.00047325,2]
[320721271,1711534239527,-150.0,0.00047325,2]
[320721272,1711534239537,-414.82,0.00047325,2]
[320721273,1711534239546,-517.46,0.00047325,2]
[320721274,1711534239554,-174.38,0.000474,7]
[320721275,1711534239564,-156.02,0.000474,7]
[320721276,1711534239573,-150.0,0.0004742,120]
[320721277,1711534239582,-173.032718,0.00047498,98]
[320721278,1711534239591,-156.89639175,0.00047575,30]
[320721279,1711534239607,-151.54545459,0.00047654,30]
[320721280,1711534239622,-153.23629697,0.0004767,30]
[320721281,1711534239633,-1800.0,0.000479,17]
[320721282,1711534239642,-150.0,0.00047918,7]
[320721283,1711534239653,-100000.0,0.00047919,7]
[320721284,1711534239663,-503.6111413,0.00048,100]
[320721285,1711534239673,-560.75087012,0.00048,4]
[320721286,1711534239682,-183.71,0.00048,7]
[320721287,1711534239692,-8697.68563469,0.00048083,24]
[320721288,1711534239702,-167.95611615,0.00048135,30]
[320721289,1711534239711,-156.89639175,0.00048165,30]
[320721290,1711534239722,-151.54545459,0.00048284,30]
[320721291,1711534239731,-830.76,0.00048403,2]
[320721292,1711534240002,-164.88553698,0.00048441,30]
[320721293,1711534240011,-173.032718,0.00048498,98]
[320721294,1711534240021,-194533.82982586,0.000485,120]
[320721295,1711534240030,-1111.0,0.000487,4]
[320721296,1711534240039,-16721.08964175,0.000487,2]
[320721297,1711534240048,-1023.0,0.000487,117]
[320721298,1711534240058,-196.0,0.00048768,15]
[320721299,1711534240067,-196.0,0.00048778,15]
[320721300,1711534240076,-196.0,0.00048788,15]
[320721301,1711534240085,-709.36350887,0.00048798,10]
[320721302,1711534240094,-150.0,0.00048799,7]
[320721303,1711534240103,-851006.09121908,0.000488,2]
[320721304,1711534240117,-162674.50908549,0.000488,2]
[320721305,1711534240127,-32767.37935355,0.000488,30]
[320721306,1711534240136,-174.38,0.000488,7]
[320721307,1711534240146,-156.02,0.000488,7]
[320721308,1711534240157,-150.0,0.00048837,60]
[320721309,1711534240166,-292.18382502,0.00048873,45]
[320721310,1711534240175,-150.0,0.00048879,7]
[320721311,1711534240183,-807845.65611516,0.0004888,2]
[320721312,1711534240193,-150.0,0.000489,2]
[320721313,1711534240202,-300.0,0.000489,17]
[320721314,1711534240211,-40832.57684633,0.00049,10]
[320721315,1711534240221,-158.0359404,0.00049183,30]
[320721316,1711534240234,-1000.0,0.00049231,30]
[320721317,1711534240244,-646.01,0.00049315,30]
[320721318,1711534240254,-151.0,0.00049315,14]
[320721319,1711534240263,-151.0,0.00049315,120]
[320721320,1711534240273,-151.0,0.00049315,120]
[320721321,1711534240283,-151.0,0.00049315,120]
[320721322,1711534240292,-11711.48,0.00049316,2]
[320721323,1711534240302,-1176.0,0.00049316,2]
[320721324,1711534240312,-1046.0,0.00049316,2]
[320721325,1711534240321,-151.0,0.00049316,120]
[320721326,1711534240330,-205.651128,0.00049316,120]
[320721327,1711534240340,-151.0,0.00049316,120]
[320721328,1711534240349,-151.0,0.00049316,120]
[320721329,1711534240359,-151.0,0.00049316,120]
[320721330,1711534240368,-151.0,0.00049316,120]
[320721331,1711534240378,-151.0,0.00049316,30]
[320721332,1711534240388,-771.379614,0.00049316,120]
[320721333,1711534240399,-151.0,0.00049316,120]
[320721334,1711534240409,-771.379614,0.00049316,120]
[320721335,1711534240418,-151.0,0.00049316,120]
[320721336,1711534240427,-151.0,0.00049385,120]
[320721337,1711534240437,-151.0,0.00049385,30]
[320721338,1711534240446,-151.0,0.00049385,120]
[320721339,1711534240455,-151.0,0.00049385,120]
[320721340,1711534240465,-151.0,0.00049385,120]
[320721341,1711534240474,-183.71,0.000494,7]
[320721342,1711534240483,-167.032718,0.00049498,99]
[320721343,1711534240492,-173.032718,0.00049498,100]
[320721344,1711534240502,-151.0,0.00049562,120]
[320721345,1711534240511,-151.0,0.00049562,120]
[320721346,1711534240521,-151.0,0.00049562,120]
[320721347,1711534240530,-151.0,0.00049562,120]
[320721348,1711534240541,-151.0,0.00049562,120]
[320721349,1711534240550,-151.0,0.00049562,120]
[320721350,1711534240560,-151.0,0.00049562,120]
[320721351,1711534240569,-151.0,0.00049562,120]
[320721352,1711534240578,-151.0,0.00049562,120]
[320721353,1711534240587,-151.0,0.00049571,7]
[320721354,1711534240597,-151.0,0.00049571,120]
[320721355,1711534240607,-151.0,0.00049571,120]
[320721356,1711534240617,-261.273612,0.00049571,120]
[320721357,1711534240627,-2704.85740788,0.00049571,2]
[320721358,1711534240637,-24770.05795702,0.00049571,2]
[320721359,1711534240646,-196.0,0.0004968,15]
[320721360,1711534240656,-836.54340258,0.00049683,2]
[320721361,1711534240666,-10000.0,0.00049688,30]
[320721362,1711534240675,-196.0,0.0004969,15]
[320721363,1711534240685,-47865.12415911,0.000499,30]
[320721364,1711534240703,-673174.05747311,0.000499,30]
[320721365,1711534240713,-151.0,0.000499,14]
[320721366,1711534240723,-151.0,0.000499,120]
[320721367,1711534240732,-151.0,0.000499,120]
[320721368,1711534240741,-239.764288,0.000499,120]
[320721369,1711534240751,-150.0,0.00049999,7]
[320721370,1711534240761,-5000.0,0.0005,30]
[320721371,1711534240773,-999.999999,0.0005,2]
[320721372,1711534240784,-243.70899105,0.0005,40]
[320721373,1711534240794,-1035.0,0.0005,30]
[320721374,1711534240806,-567.75368568,0.0005,30]
[320721375,1711534240817,-1291.33627352,0.0005,30]
[320721376,1711534240828,-43076.0,0.0005,120]
[320721377,1711534240838,-30103.0,0.0005,120]
[320721378,1711534240849,-4000.0,0.00050137,120]
[320721379,1711534240860,-174.38,0.000502,7]
[320721380,1711534240870,-156.02,0.000502,7]
[320721381,1711534240879,-156.01214547,0.00050297,4]
[320721382,1711534240889,-3662.02530811,0.00050298,4]
[320721383,1711534240900,-156.89639175,0.00050341,60]
[320721384,1711534240909,-157.25738245,0.00050359,60]
[320721385,1711534240919,-5913.72179436,0.00050399,4]
[320721386,1711534240928,-161.032718,0.00050498,105]
[320721387,1711534240938,-173.032718,0.00050498,101]
[320721388,1711534240948,-195.55,0.000505,120]
[320721389,1711534240957,-195.551,0.000505,120]
[320721390,1711534240967,-195.55,0.000505,120]
[320721391,1711534240976,-830.76,0.00050667,2]
[320721392,1711534240986,-4621.0,0.00050685,120]
[320721393,1711534240995,-3073.0,0.00050685,120]
[320721394,1711534241005,-3100.0,0.00050685,120]
[320721395,1711534241014,-3185.0,0.00050685,120]
[320721396,1711534241023,-6804.0,0.000507,10]
[320721397,1711534241033,-8697.68563469,0.00050807,27]
[320721398,1711534241042,-151.54545459,0.00050861,60]
[320721399,1711534241054,-151.54545459,0.00050864,60]
[320721400,1711534241065,-153.12534534,0.000509,120]
[320721401,1711534241074,-153.12534523,0.000509,120]
[320721402,1711534241083,-153.12534523,0.000509,120]
[320721403,1711534241093,-153.12534523,0.000509,120]
[320721404,1711534241103,-153.12534523,0.000509,120]
[320721405,1711534241112,-153.12534523,0.000509,120]
[320721406,1711534241121,-153.12534523,0.000509,120]
[320721407,1711534241131,-153.12534523,0.000509,120]
[320721408,1711534241140,-153.12534523,0.000509,120]
[320721409,1711534241151,-153.12534523,0.000509,120]
[320721410,1711534241160,-183.71,0.000509,7]
[320721411,1711534241169,-153.12534523,0.000509,120]
[320721412,1711534241179,-153.12534523,0.000509,120]
[320721413,1711534241188,-153.12534523,0.000509,120]
[320721414,1711534241198,-153.12534523,0.000509,120]
[320721415,1711534241207,-153.12534523,0.000509,120]
[320721416,1711534241216,-153.12534523,0.000509,120]
[320721417,1711534241226,-18429.744,0.00050991,120]
[320721418,1711534241235,-629.0,0.00051,31]
[320721419,1711534241245,-1000.0,0.00051,31]
[320721420,1711534241255,-502.0,0.00051,30]
[320721421,1711534241265,-1053.93053972,0.000511,30]
[320721422,1711534241274,-151.54545459,0.00051167,60]
[320721423,1711534241286,-151.22191435,0.00051175,60]
[320721424,1711534241297,-164.88553698,0.00051214,60]
[320721425,1711534241307,-1000.0,0.000513,7]
[320721426,1711534241318,-151.0,0.000513,30]
[320721427,1711534241327,-771.379614,0.000513,120]
[320721428,1711534241338,-151.0,0.000513,120]
[320721429,1711534241347,-771.379614,0.000513,120]
[320721430,1711534241359,-151.0,0.000513,120]
[320721431,1711534241369,-156.89639175,0.00051312,60]
[320721432,1711534241378,-157.032718,0.00051498,94]
[320721433,1711534241389,-173.032718,0.00051498,102]
[320721434,1711534241400,-173.032718,0.00051498,106]
[320721435,1711534241410,-1000.0,0.000515,31]
[320721436,1711534241420,-174.38,0.000515,7]
[320721437,1711534241430,-156.02,0.000515,7]
[320721438,1711534241440,-172.49,0.00051574,2]
[320721439,1711534241450,-157.25738245,0.00051693,60]
[320721440,1711534241460,-156.89639175,0.00051736,60]
[320721441,1711534241474,-157.032718,0.00051798,95]
[320721442,1711534241484,-15019.34908001,0.000518,12]
[320721443,1711534241494,-158.12704685,0.0005183,60]
[320721444,1711534241505,-151.54545459,0.00051902,60]
[320721445,1711534241515,-157.25738245,0.0005195,60]
[320721446,1711534241524,-150.0,0.00051999,30]
[320721447,1711534241534,-76171.0,0.00052,120]
[320721448,1711534241544,-1984.88,0.00052,120]
[320721449,1711534241554,-157.416393,0.00052,120]
[320721450,1711534241564,-151.0,0.00052,30]
[320721451,1711534241573,-151.0,0.00052,120]
[320721452,1711534241583,-151.0,0.00052,120]
[320721453,1711534241593,-151.0,0.00052,120]
[320721454,1711534241602,-151.0,0.00052,120]
[320721455,1711534241612,-151.0,0.00052,120]
[320721456,1711534241621,-176.231198,0.00052,120]
[320721457,1711534241631,-151.0,0.00052,120]
[320721458,1711534241642,-151.0,0.00052,120]
[320721459,1711534241658,-151.0,0.00052,120]
[320721460,1711534241668,-151.0,0.00052,120]
[320721461,1711534241679,-151.0,0.00052,120]
[320721462,1711534241689,-276.538599,0.00052,120]
[320721463,1711534241698,-151.0,0.00052,120]
[320721464,1711534241708,-151.0,0.00052,120]
[320721465,1711534241718,-183.71,0.00052,7]
[320721466,1711534241729,-151.0,0.00052,120]
[320721467,1711534241739,-151.0,0.00052,120]
[320721468,1711534241749,-193.636468,0.00052,120]
[320721469,1711534241761,-150.11,0.00052,120]
[320721470,1711534241772,-500.0,0.00052054,60]
[320721471,1711534241783,-500.0,0.00052054,120]
[320721472,1711534241793,-1012.01,0.00052054,2]
[320721473,1711534241804,-156.89639175,0.00052112,60]
[320721474,1711534241815,-157.032718,0.00052198,96]
[320721475,1711534241825,-152.38573111,0.00052251,53]
[320721476,1711534241836,-158.12704685,0.00052294,60]
[320721477,1711534241846,-151.0,0.00052314,7]
[320721478,1711534241856,-151.0,0.00052314,120]
[320721479,1711534241866,-151.0,0.00052314,120]
[320721480,1711534241875,-1176.0,0.00052316,120]
[320721481,1711534241886,-151.0,0.00052404,2]
[320721482,1711534241898,-192.142,0.00052404,120]
[320721483,1711534241914,-150.859,0.00052404,120]
[320721484,1711534241923,-150.612,0.00052404,120]
[320721485,1711534241933,-210.0,0.00052404,2]
[320721486,1711534241943,-536.0,0.00052404,120]
[320721487,1711534241952,-158.12704685,0.00052411,60]
[320721488,1711534241961,-173.032718,0.00052498,107]
[320721489,1711534241971,-157.032718,0.00052498,97]
[320721490,1711534241982,-173.032718,0.00052498,103]
[320721491,1711534241992,-2000.0,0.000525,120]
[320721492,1711534242001,-500.0,0.00052602,60]
[320721493,1711534242011,-720.04,0.00052718,2]
[320721494,1711534242021,-720.04,0.00052732,2]
[320721495,1711534242030,-151.0,0.00052737,2]
[320721496,1711534242039,-720.04,0.00052746,2]
[320721497,1711534242049,-720.04,0.0005276,2]
[320721498,1711534242059,-720.04,0.00052774,2]
[320721499,1711534242068,-720.04,0.00052788,2]
[320721500,1711534242078,-3815.06,0.00052792,120]
[320721501,1711534242087,-157.032718,0.00052798,98]
[320721502,1711534242097,-720.04,0.00052802,2]
[320721503,1711534242106,-720.04,0.00052815,2]
[320721504,1711534242115,-720.04,0.00052829,2]
[320721505,1711534242125,-720.04,0.00052843,2]
[320721506,1711534242134,-720.04,0.00052857,2]
[320721507,1711534242143,-836.54340258,0.00052861,2]
[320721508,1711534242156,-720.04,0.00052871,2]
[320721509,1711534242165,-1012.01,0.00052876,120]
[320721510,1711534242176,-720.04,0.00052885,2]
[320721511,1711534242185,-720.04,0.00052899,2]
[320721512,1711534242195,-150.0,0.00052899,30]
[320721513,1711534242204,-464829.2639284,0.000529,18]
[320721514,1711534242214,-61910.48696219,0.000529,30]
[320721515,1711534242223,-151.0,0.000529,14]
[320721516,1711534242232,-151.0,0.000529,120]
[320721517,1711534242242,-151.0,0.000529,120]
[320721518,1711534242251,-720.04,0.00052912,2]
[320721519,1711534242261,-720.04,0.00052926,2]
[320721520,1711534242270,-830.76,0.00052931,2]
[320721521,1711534242279,-720.04,0.0005294,2]
[320721522,1711534242288,-720.04,0.00052954,2]
[320721523,1711534242298,-720.04,0.00052968,2]
[320721524,1711534242307,-205.8,0.0005298,15]
[320721525,1711534242317,-720.04,0.00052982,2]
[320721526,1711534242326,-196.0,0.0005299,15]
[320721527,1711534242336,-155.76,0.00053,7]
[320721528,1711534242345,-9221.64878868,0.00053,4]
[320721529,1711534242355,-151.22191435,0.00053029,60]
[320721530,1711534242364,-500.0,0.0005315,60]